bitfinex/quotes_ETHUSD_20240922
["timestamp","ask_amount","ask_price","bid_price","bid_amount"]
[1727046319558,0.07844252,2588.3,2588.2,0.0854199]
[1727046319940,3.86324,2588.5,2588.2,0.0854199]
[1727046320177,3.94197252,2588.3,2588.2,0.0854199]
[1727046320393,6.34713,2588.3,2588.2,0.0854199]
[1727046320676,3.94197252,2588.3,2588.2,0.0854199]
[1727046321035,4.49197252,2588.3,2588.2,0.0854199]
[1727046321534,0.07844252,2588.3,2588.2,0.0854199]
[1727046321735,3.94197252,2588.3,2588.2,0.0854199]
[1727046322538,3.86458,2587.6,2587.5,1.2761]
[1727046322737,3.86458,2587.6,2587.3,0.0418378]
[1727046322738,3.86401,2588.0,2587.3,3.9067478]
[1727046322968,0.55,2588.5,2587.9,3.86401]
[1727046323161,0.07844252,2587.9,2587.7,3.8643]
[1727046323373,3.86339,2588.4,2587.8,0.38643]
[1727046323579,0.55,2588.3,2587.7,3.8643]
[1727046323750,0.55,2588.3,2587.8,3.86426]
[1727046323962,2.4836,2588.7,2587.9,3.86411]
[1727046324264,2.4836,2588.7,2588.1,1.2761]
[1727046324465,3.8631,2588.6,2588.1,1.2761]
[1727046324838,3.12051689,2589.0,2588.1,1.2761]
[1727046324839,3.86252,2589.0,2588.1,1.790107]
[1727046325039,3.86261,2589.0,2588.2,3.86354]
[1727046325685,3.12051689,2588.9,2588.2,3.86354]
[1727046326053,3.86292,2588.8,2588.2,3.86366]
[1727046326275,1.22176513,2589.1,2588.4,3.86324]
[1727046326276,5.08411513,2589.1,2588.4,3.86324]
[1727046326576,3.86281,2588.8,2588.1,1.2761]
[1727046326778,3.86281,2588.8,2588.1,5.953928]
[1727046326950,3.86311,2588.6,2588.1,1.2761]
[1727046327157,1.22176513,2589.1,2588.4,3.86335]
[1727046327356,3.8623,2589.2,2588.4,3.94060494]
[1727046327545,0.55,2589.1,2588.5,1.2761]
[1727046327880,2.4836,2589.3,2588.6,0.07725425]
[1727046328090,4.41207,2589.3,2588.6,3.86298]
[1727046328382,3.86119,2589.9,2589.3,1.2761]
[1727046328589,0.386119,2589.8,2589.3,5.13808]
[1727046328885,0.386119,2589.8,2589.3,1.2761]
[1727046329095,3.86146,2589.7,2589.3,1.2761]
[1727046329389,3.86146,2589.7,2588.9,1.2761]
[1727046329595,3.86205,2589.3,2588.9,1.2761]
[1727046329743,3.86188,2589.5,2588.9,1.2761]
[1727046330169,7.72377,2589.5,2588.9,1.2761]
[1727046330372,3.8619,2589.4,2588.9,1.2761]
[1727046330574,3.862,2589.4,2588.9,1.2761]
[1727046330885,2.4836,2590.0,2588.9,1.2761]
[1727046330886,6.34464,2590.0,2588.9,1.2761]
[1727046331056,0.07548099,2589.3,2589.0,3.93957216]
[1727046331249,6.34464,2590.0,2589.3,3.86191]
[1727046331452,0.07559271,2589.9,2589.4,1.2761]
[1727046331687,0.07559271,2589.9,2589.6,3.86158]
[1727046332001,3.86115,2589.9,2589.4,1.2761]
[1727046332285,3.86172,2589.6,2589.1,1.2761]
[1727046332505,3.86184,2589.5,2588.9,3.0]
[1727046332679,3.86192,2589.4,2588.9,3.0]
[1727046333065,3.86206,2589.3,2588.6,7.72602]
[1727046333210,3.93778535,2589.3,2588.6,3.86299]
[1727046333372,3.93778535,2589.3,2588.6,7.72599]
[1727046333576,0.07572535,2589.3,2588.7,3.86293]
[1727046334031,0.07572535,2589.3,2588.9,3.86257]
[1727046334312,3.68716736,2590.0,2589.2,3.86219]
[1727046334516,3.68716736,2590.0,2589.0,1.2761]
[1727046334720,3.68716736,2590.0,2589.4,3.86179]
[1727046335012,7.54817736,2590.0,2589.4,3.86179]
[1727046335421,3.86116,2589.9,2589.3,7.72399]
[1727046335776,3.86116,2589.9,2589.3,3.86194]
[1727046336416,3.68716736,2590.0,2589.5,3.86173]
[1727046336590,1.21716736,2590.0,2589.7,3.8614]
[1727046336794,1.21716736,2590.0,2589.6,1.2761]
[1727046338098,5.07824736,2590.0,2589.5,3.86165]
[1727046338297,3.86117,2589.9,2589.4,3.86189]
[1727046338626,1.21716736,2590.0,2589.4,3.86189]
[1727046338806,5.07819736,2590.0,2589.4,3.86189]
[1727046339142,1.21716736,2590.0,2589.4,3.86189]
[1727046339792,3.86116,2589.9,2589.4,3.86189]
[1727046340982,7.7224,2589.9,2589.4,3.86189]
[1727046341186,3.86116,2589.9,2589.4,3.86189]
[1727046341875,3.86116,2589.9,2589.3,5.13812]
[1727046342081,3.86138,2589.8,2589.3,1.2761]
[1727046342324,3.86116,2589.9,2589.3,1.2761]
[1727046342545,3.86184,2589.5,2589.0,1.2761]
[1727046342886,7.72366,2589.5,2589.0,1.2761]
[1727046343226,0.55,2589.6,2589.1,3.86231]
[1727046344128,0.55,2589.6,2589.0,5.13846]
[1727046344355,3.86139,2589.8,2589.1,3.86234]
[1727046344503,3.86153,2589.7,2589.1,7.72456]
[1727046344702,3.86153,2589.7,2589.2,3.86217]
[1727046344942,3.86139,2589.8,2589.3,3.86195]
[1727046345244,3.8611,2590.0,2589.4,3.86188]
[1727046345414,5.87798904,2590.3,2589.8,3.86128]
[1727046345597,3.86094,2590.1,2589.7,1.2761]
[1727046345802,3.86094,2590.1,2589.6,3.86156]
[1727046346035,3.86094,2590.1,2589.5,3.86166]
[1727046346036,0.075858,2590.0,2589.5,3.86166]
[1727046346247,0.075858,2590.0,2589.5,3.86165]
[1727046346422,3.936858,2590.0,2589.4,5.1379]
[1727046346821,7.797948,2590.0,2589.4,5.1379]
[1727046347000,0.075858,2590.0,2589.7,3.8613]
[1727046347201,1.21032104,2590.3,2589.4,4.2761]
[1727046347442,3.276968,2590.5,2590.2,7.72132]
[1727046347443,0.806968,2590.5,2590.2,7.72132]
[1727046347744,0.806968,2590.5,2590.2,3.86062]
[1727046347949,0.806968,2590.5,2589.8,0.07720686]
[1727046347950,4.667328,2590.5,2589.8,5.13728]
[1727046348246,3.86066,2590.3,2589.8,5.13728]
[1727046348448,8.87103585,2590.3,2589.7,6.86144]
[1727046348619,3.86072,2590.2,2589.7,6.86144]
[1727046348819,3.86101,2590.0,2589.5,1.2761]
[1727046349009,2.54377585,2589.9,2589.5,1.2761]
[1727046349212,3.86101,2590.0,2589.5,5.13782]
[1727046349549,0.756968,2590.5,2590.2,8.99728]
[1727046349854,1.21045201,2590.6,2590.2,1.2761]
[1727046350055,1.21045201,2590.6,2589.9,1.2761]
[1727046350256,1.21045201,2590.6,2590.4,7.72068]
[1727046350441,1.21045201,2590.6,2590.5,3.86025]
[1727046350955,1.21045201,2590.6,2590.5,5.13635]
[1727046351128,1.21045201,2590.6,2590.5,5.21354477]
[1727046351324,1.21045201,2590.6,2590.5,8.13635]
[1727046353150,0.0418378,2590.7,2590.5,8.13635]
[1727046353364,0.0418378,2590.7,2590.6,3.0]
[1727046353524,0.0418378,2590.7,2590.6,8.949835]
[1727046353983,0.0418378,2590.7,2590.6,9.39473308]
[1727046354132,0.0418378,2591.6,2591.5,3.85876]
[1727046354324,0.0418378,2591.6,2591.5,3.93592079]
[1727046354561,0.118561,2591.6,2591.5,5.21202079]
[1727046354723,0.0418378,2591.6,2591.5,5.21202079]
[1727046354923,0.0418378,2591.6,2591.5,5.13486]
[1727046355125,0.0418378,2591.6,2591.3,3.85893]
[1727046355368,0.0418378,2591.6,2591.3,3.85896]
[1727046355672,0.0418378,2591.6,2591.4,3.8589]
[1727046356268,0.0418378,2591.6,2591.5,3.85876]
[1727046356466,0.0418378,2591.6,2591.2,3.0]
[1727046357968,0.0418378,2591.6,2591.3,3.85905]
[1727046358372,0.0418378,2591.6,2591.4,3.8589]
[1727046358536,0.0418378,2591.6,2591.4,4.930695]
[1727046358737,0.0418378,2591.6,2591.4,1.071795]
[1727046360245,0.0418378,2591.6,2591.2,3.0]
[1727046360576,0.0418378,2591.6,2590.6,0.813635]
[1727046360577,3.85909,2591.3,2590.6,0.813635]
[1727046360782,3.85886,2591.5,2590.7,3.85985]
[1727046361131,0.0767232,2591.4,2590.7,3.85985]
[1727046361332,0.0767232,2591.4,2590.5,5.13631]
[1727046361333,0.55,2591.3,2590.5,5.13625]
[1727046361838,0.0418378,2591.6,2590.5,5.13625]
[1727046361839,0.0767232,2591.2,2590.5,5.13625]
[1727046362067,0.55,2591.5,2590.5,5.13625]
[1727046362290,3.85916,2591.3,2590.5,8.99642]
[1727046362460,3.85916,2591.3,2590.6,3.8601]
[1727046362641,3.85932,2591.2,2590.5,1.2761]
[1727046362835,3.9361032,2591.1,2590.5,1.2761]
[1727046363167,3.9361032,2591.1,2590.5,5.13632]
[1727046363372,3.9361032,2591.1,2590.5,1.2761]
[1727046363533,4.32971352,2591.1,2590.4,3.0]
[1727046363741,4.32971352,2591.1,2590.1,5.13685]
[1727046363742,3.85982,2590.8,2590.1,5.13685]
[1727046363943,2.2814,2591.0,2589.8,5.13737]
[1727046363944,3.86034,2590.5,2589.8,5.13737]
[1727046364139,3.86034,2590.5,2589.8,5.13738]
[1727046364371,3.86034,2590.5,2589.9,3.8611]
[1727046364372,0.0767232,2590.4,2589.9,3.8611]
[1727046364701,0.0767232,2590.4,2589.9,3.86105]
[1727046365000,0.0767232,2590.4,2589.4,3.86185]
[1727046365001,3.86116,2589.9,2589.4,1.2761]
[1727046365295,3.9381632,2589.8,2589.1,1.2761]
[1727046365439,2.2814,2589.7,2588.8,1.2761]
[1727046365781,3.86171,2589.6,2588.8,5.13888]
[1727046365986,0.55,2589.5,2588.8,1.2761]
[1727046366194,0.55,2589.5,2588.9,3.93986613]
[1727046366333,4.4116,2589.6,2588.9,3.86262]
[1727046366534,0.0767232,2589.4,2588.8,5.13885]
[1727046366764,4.4116,2589.6,2588.9,0.07724284]
[1727046367377,0.0767232,2589.5,2588.8,5.13885]
[1727046367597,0.0767232,2589.5,2588.9,0.07724284]
[1727046367881,0.0767232,2589.5,2588.8,4.2761]
[1727046368265,3.9384832,2589.5,2588.8,4.2761]
[1727046368432,3.86192,2589.4,2588.8,4.2761]
[1727046368638,0.55,2589.2,2588.8,1.2761]
[1727046369285,0.0757533,2589.1,2588.8,1.2761]
[1727046370349,2.2814,2589.7,2588.8,1.2761]
[1727046370550,0.0757533,2589.0,2588.4,3.0]
[1727046370786,3.86215,2589.3,2588.5,1.072689]
[1727046370787,3.86234,2589.1,2588.5,1.072689]
[1727046370997,3.86152,2589.7,2588.5,1.072689]
[1727046370998,0.0757533,2588.9,2588.7,3.8628]
[1727046371203,3.8622,2589.2,2588.5,4.935809]
[1727046371416,0.0757533,2588.8,2588.4,3.0]
[1727046371625,3.86249,2589.0,2588.4,3.0]
[1727046371771,0.07554383,2588.7,2588.4,3.0]
[1727046371976,3.8622,2589.2,2588.4,6.86338]
[1727046372220,0.07553685,2588.6,2588.4,6.86338]
[1727046372525,3.8622,2589.2,2588.5,3.86324]
[1727046372696,3.86197,2589.4,2588.5,3.86324]
[1727046372697,3.86197,2589.4,2588.5,3.86313]
[1727046372894,3.86197,2589.4,2588.5,3.8821872]
[1727046373194,3.86214,2589.3,2588.5,7.7453172]
[1727046373391,3.86214,2589.3,2588.6,3.86306]
[1727046373571,3.86214,2589.3,2588.6,5.0452721]
[1727046373977,3.86227,2589.2,2588.6,0.0190572]
[1727046374275,3.86214,2589.3,2588.6,0.0190572]
[1727046374276,3.86215,2589.3,2588.6,0.0190572]
[1727046374497,7.72577,2588.8,2588.6,0.0190572]
[1727046374748,3.86294,2588.7,2588.6,0.0190572]
[1727046374893,4.41294,2588.7,2588.6,0.0190572]
[1727046376200,4.488414,2588.7,2588.6,0.0190572]
[1727046379630,0.075474,2588.7,2588.6,0.0190572]
[1727046379924,3.86276,2588.9,2588.6,0.0190572]
[1727046380127,3.93467574,2588.7,2588.6,0.0190572]
[1727046380301,3.86294,2588.7,2588.6,0.0190572]
[1727046380681,3.93461976,2588.7,2588.6,0.0190572]
[1727046381192,4.48461976,2588.7,2588.6,0.0190572]
[1727046383253,0.07167976,2588.7,2588.2,3.8327172]
[1727046383480,0.07167976,2588.7,2587.9,0.0376145]
[1727046383481,0.07167976,2588.7,2588.5,3.86322]
[1727046383627,3.86254,2589.0,2588.5,0.386322]
[1727046383828,0.07175673,2588.6,2588.4,3.86338]
[1727046384154,3.86272,2588.9,2588.4,3.86338]
[1727046384466,0.07175673,2588.5,2588.4,3.86338]
[1727046384755,3.86254,2589.0,2588.5,7.72646]
[1727046384943,3.86229,2589.2,2588.1,3.0]
[1727046385147,3.86258,2589.0,2588.5,3.86322]
[1727046385461,3.86258,2589.0,2588.3,3.86346]
[1727046385462,3.8628,2588.8,2588.3,3.86344]
[1727046386119,3.8628,2588.8,2588.2,0.6]
[1727046386120,3.86312,2588.6,2588.2,0.6]
[1727046386331,3.86312,2588.6,2588.1,6.86371]
[1727046386561,3.86312,2588.6,2588.1,3.86371]
[1727046386846,3.86312,2588.6,2588.1,7.72747]
[1727046387654,3.86327,2588.5,2588.0,6.86397]
[1727046387861,3.86312,2588.6,2588.0,3.0]
[1727046388225,3.86312,2588.6,2588.1,3.86382]
[1727046388448,3.86236,2589.1,2588.1,3.86382]
[1727046388650,3.86265,2588.9,2588.1,4.94028645]
[1727046388832,3.86293,2588.8,2588.1,8.80397645]
[1727046389240,3.86293,2588.8,2588.2,3.86365]
[1727046389886,3.86265,2588.9,2588.3,3.8635]
[1727046390198,7.66168236,2589.9,2588.1,4.94022645]
[1727046390199,3.86258,2589.0,2588.1,4.94022645]
[1727046390351,3.86319,2588.6,2588.4,1.2761]
[1727046390947,3.86286,2588.8,2588.4,1.2761]
[1727046391222,0.07198761,2588.5,2588.4,1.2761]
[1727046391369,3.86295,2588.7,2588.4,1.2761]
[1727046391848,0.07199461,2588.6,2588.4,1.2761]
[1727046392697,3.86286,2588.8,2588.4,1.2761]
[1727046392855,3.86257,2589.0,2588.4,5.13949]
[1727046392856,0.07199461,2588.5,2588.4,5.13949]
[1727046393062,3.8628,2588.8,2588.4,1.2761]
[1727046393571,0.07199461,2588.7,2588.4,5.13941]
[1727046393878,3.86295,2588.7,2588.4,1.2761]
[1727046394211,3.86295,2588.7,2588.2,3.86358]
[1727046394212,3.86324,2588.5,2588.1,1.2761]
[1727046394555,0.07195263,2588.4,2588.1,1.2761]
[1727046394855,0.07195263,2588.4,2588.1,5.13984]
[1727046395279,3.86305,2588.7,2588.1,5.13984]
[1727046395488,0.0717987,2588.3,2588.1,5.13984]
[1727046395671,3.86214,2589.3,2588.6,1.2761]
[1727046395871,3.64796856,2589.4,2588.6,1.2761]
[1727046395872,3.86246,2589.1,2588.6,1.2761]
[1727046396064,0.386246,2589.0,2588.6,1.2761]
[1727046396266,3.8623,2589.2,2588.7,3.86293]
[1727046396501,3.86236,2589.1,2588.6,1.2761]
[1727046397267,3.86236,2589.1,2588.6,5.1391]
[1727046397861,3.86236,2589.1,2588.6,1.2761]
[1727046398196,3.86236,2589.1,2588.4,3.86325]
[1727046398197,3.86281,2588.8,2588.4,1.2761]
[1727046398399,3.86307,2588.7,2588.4,1.2761]
[1727046398556,3.86281,2588.8,2588.4,1.2761]
[1727046399160,7.72569,2588.8,2588.4,1.2761]
[1727046399360,3.86281,2588.8,2588.4,1.2761]
[1727046399672,6.29987,2589.0,2588.7,1.2761]
[1727046399673,7.72516,2589.0,2588.7,1.2761]
[1727046400096,3.86257,2589.0,2588.7,1.2761]
[1727046400594,7.72514,2589.0,2588.7,1.2761]
[1727046400831,7.72514,2589.0,2588.4,1.2761]
[1727046400832,3.86275,2588.9,2588.4,1.2761]
[1727046401163,3.86282,2588.8,2588.4,1.2761]
[1727046401466,3.86265,2588.9,2588.4,1.2761]
[1727046401667,3.86279,2588.8,2588.4,1.2761]
[1727046401862,3.86257,2589.0,2588.4,1.2761]
[1727046401863,3.86265,2588.9,2588.4,5.13946]
[1727046402072,3.86281,2588.8,2588.4,1.2761]
[1727046402611,2.4373,2588.7,2588.2,1.2761]
[1727046402850,3.86381,2588.2,2587.9,1.3137145]
[1727046403111,7.72721,2588.3,2587.9,1.3137145]
[1727046403328,3.86355,2588.3,2587.9,1.3137145]
[1727046403510,4.28926507,2588.3,2587.9,1.3137145]
[1727046404071,3.86369,2588.2,2587.9,1.3137145]
[1727046404275,4.28926507,2588.3,2587.9,1.3137145]
[1727046405228,0.42571507,2588.3,2587.9,1.3137145]
[1727046405544,3.86331,2588.5,2588.0,3.86389]
[1727046405827,3.86331,2588.5,2587.9,1.3137145]
[1727046406040,3.86331,2588.5,2587.9,5.1777945]
[1727046406330,3.86355,2588.3,2587.9,1.3137145]
[1727046406913,0.07156075,2588.2,2587.9,1.3137145]
[1727046407228,3.86355,2588.3,2587.9,1.3137145]
[1727046407703,3.86368,2588.2,2587.9,1.3137145]
[1727046408037,6.21674075,2588.2,2587.9,0.0376145]
[1727046408240,3.86394,2588.1,2587.9,0.0376145]
[1727046408477,7.72788,2588.1,2587.9,0.0376145]
[1727046408805,0.07156075,2588.0,2587.9,0.0376145]
[1727046410445,3.93554075,2588.0,2587.9,0.0376145]
[1727046410671,0.07156075,2588.0,2587.9,0.0376145]
[1727046411014,0.80050236,2588.2,2587.9,5.1778445]
[1727046411258,1.21045201,2588.4,2587.9,5.1778445]
[1727046411259,0.07156075,2588.0,2587.9,5.1778445]
[1727046411459,0.80050236,2588.2,2587.9,5.1778445]
[1727046411609,0.07081192,2588.0,2587.9,1.3137145]
[1727046411807,0.80050236,2588.2,2587.9,1.3137145]
[1727046412051,0.07091692,2588.0,2587.9,1.3137145]
[1727046412231,0.80050236,2588.2,2587.9,5.1778445]
[1727046412435,0.07091692,2588.0,2587.9,1.3137145]
[1727046412632,0.80050236,2588.2,2587.9,1.3137145]
[1727046412839,0.07091692,2588.0,2587.9,1.3137145]
[1727046413021,0.80050236,2588.2,2587.9,1.3137145]
[1727046413236,0.07091692,2588.0,2587.9,1.3137145]
[1727046413442,0.80050236,2588.2,2587.9,1.3137145]
[1727046413649,0.07091692,2588.0,2587.9,1.3137145]
[1727046413855,0.80050236,2588.2,2587.9,1.3137145]
[1727046414112,0.07091692,2588.0,2587.9,1.3137145]
[1727046414334,4.66448236,2588.0,2587.9,0.0376145]
[1727046414540,4.73539928,2588.0,2587.9,0.0376145]
[1727046415120,3.93489692,2588.0,2587.9,0.0376145]
[1727046415322,4.74444587,2588.0,2587.9,0.0376145]
[1727046415524,0.88046587,2588.0,2587.9,0.0376145]
[1727046417155,0.07091692,2588.0,2587.9,0.0376145]
[1727046417712,3.93489692,2588.0,2587.9,0.0376145]
[1727046418053,5.14534893,2588.0,2587.9,0.0376145]
[1727046419454,7.29191436,2588.0,2587.9,0.0376145]
[1727046419669,7.70119025,2588.0,2587.9,0.0376145]
[1727046420081,7.15119025,2588.0,2587.9,0.0376145]
[1727046420281,7.95855649,2588.0,2587.9,0.0376145]
[1727046420492,9.44900744,2588.0,2587.9,0.0376145]
[1727046420786,11.87915755,2588.0,2587.9,0.0376145]
[1727046420935,11.87926995,2588.0,2587.9,0.0376145]
[1727046422369,7.95855649,2588.0,2587.9,0.0376145]
[1727046422531,7.15085869,2588.0,2587.9,0.0376145]
[1727046422729,2.88206624,2588.0,2587.9,0.0376145]
[1727046422937,7.69689756,2588.0,2587.9,0.0376145]
[1727046423231,12.05029939,2588.0,2587.9,0.0376145]
[1727046423431,10.02649719,2588.0,2587.9,0.0376145]
[1727046424086,13.94638831,2588.0,2587.9,0.0376145]
[1727046424253,12.0661258,2588.0,2587.9,0.0376145]
[1727046424945,12.0661258,2588.0,2587.1,0.0376145]
[1727046424946,3.86518,2587.2,2587.1,0.0376145]
[1727046425147,3.93527069,2587.2,2587.1,0.0376145]
[1727046425349,5.699193,2587.2,2587.1,0.0376145]
[1727046425870,10.57596774,2587.2,2587.1,0.0376145]
[1727046426298,14.49247232,2587.2,2587.1,0.0376145]
[1727046426438,15.06351477,2587.2,2587.1,0.0376145]
[1727046426640,12.51566922,2587.2,2587.1,0.0376145]
[1727046426993,12.06351477,2587.2,2587.1,0.0376145]
[1727046427220,14.48865584,2587.2,2587.1,0.0376145]
[1727046427416,15.70852697,2587.2,2587.1,0.0376145]
[1727046427702,18.70852697,2587.2,2587.1,0.0376145]
[1727046428473,14.7976497,2587.2,2587.1,0.0376145]
[1727046429328,16.28286444,2587.2,2587.1,0.0376145]
[1727046429627,3.86622,2586.5,2585.8,3.86726]
[1727046429916,9.31616555,2586.5,2585.8,1.3137]
[1727046430207,9.3856677,2586.5,2585.8,1.3137]
[1727046431268,9.3856677,2586.5,2585.6,1.3513145]
[1727046431710,10.19234699,2586.5,2585.6,1.3513145]
[1727046431949,16.39775557,2586.5,2585.6,0.0376145]
[1727046432419,14.80602575,2586.5,2585.6,0.0376145]
[1727046432798,16.39693955,2586.5,2585.6,0.0376145]
[1727046433179,8.76736555,2585.7,2585.6,0.0376145]
[1727046433397,3.86727,2585.8,2585.6,0.0376145]
[1727046433611,3.93562575,2585.7,2585.6,0.0376145]
[1727046434422,6.4834713,2585.7,2585.6,0.0376145]
[1727046434791,3.93562575,2585.7,2585.6,0.0376145]
[1727046435124,0.06820575,2585.7,2585.6,0.0376145]
[1727046435535,2.6160513,2585.7,2585.6,0.0376145]
[1727046435690,6.96526555,2585.7,2585.6,0.0376145]
[1727046436071,6.96526555,2585.7,2584.8,0.0376145]
[1727046436072,0.55,2585.6,2584.8,1.3889145]
[1727046436191,0.55,2585.6,2584.8,0.0376145]
[1727046436192,2.3521,2585.1,2584.8,0.0376145]
[1727046436385,6.41646555,2584.9,2584.8,0.0376145]
[1727046436728,3.1660513,2584.9,2584.8,0.0376145]
[1727046437234,7.0346713,2584.9,2584.8,0.0376145]
[1727046438475,9.2847713,2584.9,2584.8,0.0376145]
[1727046440312,9.88229204,2584.9,2584.8,0.0376145]
[1727046443220,6.73692575,2584.9,2584.8,0.0376145]
[1727046443538,0.06820575,2584.9,2584.8,0.0376145]
[1727046443754,3.93682575,2584.9,2584.8,0.0376145]
[1727046444748,4.48682575,2584.9,2584.8,0.0376145]
[1727046444932,3.93682575,2584.9,2584.8,0.0376145]
[1727046445112,0.06820575,2584.9,2584.8,0.0376145]
[1727046445449,3.86818,2585.2,2584.8,1.3889145]
[1727046445654,0.06560298,2584.9,2584.8,1.3889145]
[1727046445815,3.86805,2585.3,2584.8,1.3889145]
[1727046446011,0.06560298,2584.9,2584.8,1.3889145]
[1727046446337,3.868,2585.4,2584.8,5.2576845]
[1727046446338,7.73598,2585.4,2584.8,5.2576845]
[1727046446659,3.14536629,2585.1,2584.8,1.3889145]
[1727046446796,3.86862,2584.9,2584.8,0.0376145]
[1727046447236,3.93422298,2584.9,2584.8,0.0376145]
[1727046447601,4.48422298,2584.9,2584.8,0.0376145]
[1727046448955,6.73432298,2584.9,2584.8,0.0376145]
[1727046450645,6.73432298,2584.9,2584.0,0.0376145]
[1727046450646,7.48422298,2584.9,2584.0,0.0376145]
[1727046450808,9.81527629,2584.1,2584.0,0.0376145]
[1727046451307,6.73551298,2584.1,2584.0,0.0376145]
[1727046451829,9.88087927,2584.1,2584.0,0.0376145]
[1727046452261,9.88087927,2584.1,2583.3,0.0376145]
[1727046452262,3.87086,2583.4,2583.3,0.0376145]
[1727046452455,7.56622629,2583.4,2583.3,0.0376145]
[1727046452941,7.56622629,2583.4,2581.7,3.9109545]
[1727046452942,3.87231,2582.5,2582.4,0.0380279]
[1727046453141,7.56767629,2582.5,2582.4,0.0380279]
[1727046453639,0.06560298,2582.5,2582.4,0.0380279]
[1727046454174,3.93781298,2582.5,2582.4,0.0380279]
[1727046455017,0.06560298,2582.5,2582.4,0.0380279]
[1727046455228,3.8718,2582.8,2582.4,0.0380279]
[1727046455432,0.06433822,2582.5,2582.4,0.0380279]
[1727046455663,4.42221,2582.5,2582.4,0.0380279]
[1727046455818,4.48506579,2582.5,2582.4,0.0380279]
[1727046456322,12.92083208,2582.5,2582.4,0.0380279]
[1727046457081,3.87386,2581.4,2581.3,1.4047592]
[1727046457286,3.87386,2581.4,2581.3,0.0534592]
[1727046457287,4.42386,2581.4,2581.3,0.0534592]
[1727046457505,0.06289798,2581.4,2581.3,0.0534592]
[1727046457777,3.87323,2581.9,2581.3,1.4047592]
[1727046457987,0.06246194,2581.4,2581.3,1.4047592]
[1727046458138,0.55,2581.7,2581.3,1.4047592]
[1727046458340,0.06246194,2581.4,2581.3,1.4047592]
[1727046458581,3.87362,2581.6,2581.3,1.4047592]
[1727046458739,3.87211,2582.6,2581.3,1.4047592]
[1727046458740,3.87302,2582.0,2581.3,1.4047592]
[1727046458945,3.87242,2582.4,2581.7,3.87327]
[1727046459142,3.87242,2582.4,2581.8,1.3513]
[1727046459373,3.87242,2582.4,2581.8,5.22446]
[1727046459577,0.06246194,2582.3,2581.8,5.22446]
[1727046459786,0.06246194,2582.3,2582.0,3.87295]
[1727046459939,3.87211,2582.6,2581.8,5.22446]
[1727046460276,3.87242,2582.4,2581.8,6.134254]
[1727046460443,3.87242,2582.4,2581.8,10.007414]
[1727046460837,0.06246194,2582.3,2581.8,2.261094]
[1727046461041,0.06246194,2582.3,2582.2,3.87266]
[1727046461241,3.87154,2583.0,2582.4,3.87234]
[1727046461497,7.74254,2583.2,2582.5,3.87218]
[1727046461640,0.06246194,2582.9,2582.5,3.87218]
[1727046461843,3.87124,2583.2,2582.6,3.87205]
[1727046462092,0.06246194,2582.8,2582.6,3.87205]
[1727046462250,3.87093,2583.4,2582.8,1.3513]
[1727046462654,3.87103,2583.3,2582.8,1.3513]
[1727046462850,3.87093,2583.4,2582.8,1.3513]
[1727046463061,3.87093,2583.4,2582.8,5.22306]
[1727046463253,3.8703,2583.8,2582.9,0.07742818]
[1727046463477,5.43576629,2583.9,2582.8,5.22305]
[1727046463992,3.87068,2583.6,2582.8,5.22296]
[1727046464343,3.87068,2583.6,2582.8,5.22294]
[1727046464844,3.87068,2583.6,2583.0,3.87134]
[1727046465976,7.74069,2583.8,2583.1,3.87116]
[1727046466264,0.06434581,2583.7,2583.4,3.87085]
[1727046466467,0.06434581,2583.7,2583.6,3.87056]
[1727046466726,2.2904,2584.9,2583.7,1.3513]
[1727046466880,3.86857,2585.0,2584.2,1.3513]
[1727046467193,3.86897,2584.7,2584.2,1.3513]
[1727046467401,0.06435986,2584.6,2584.2,1.3513]
[1727046467610,3.86852,2585.0,2584.3,3.86951]
[1727046467891,0.06435986,2584.9,2584.3,3.86951]
[1727046468054,0.06435986,2584.9,2584.4,3.86925]
[1727046468259,3.8688,2584.8,2584.2,1.3513]
[1727046468492,3.8688,2584.8,2584.2,5.22088]
[1727046468654,0.06435986,2584.7,2584.2,6.129938]
[1727046468856,0.06435986,2584.7,2584.5,3.8691]
[1727046469160,3.8682,2585.2,2584.6,3.86907]
[1727046469352,0.06435986,2585.1,2584.7,3.94628062]
[1727046469555,3.86788,2585.4,2584.8,1.3513]
[1727046469861,0.06435986,2585.3,2584.8,5.21996]
[1727046470053,0.06435986,2585.3,2584.8,2.260178]
[1727046470260,3.86828,2585.2,2584.5,5.2204]
[1727046470485,3.86828,2585.2,2584.7,3.86891]
[1727046470486,0.06435986,2585.2,2584.7,3.86891]
[1727046470695,0.0534592,2585.7,2584.7,3.86879]
[1727046470858,0.06435986,2585.1,2584.7,3.86879]
[1727046471056,3.86797,2585.4,2584.7,3.86879]
[1727046471256,0.0656166,2585.0,2584.7,4.777716]
[1727046471483,3.86797,2585.4,2584.7,4.777716]
[1727046471685,0.0656166,2584.9,2584.8,3.86877]
[1727046471895,0.0656166,2584.9,2584.7,4.777716]
[1727046471896,3.86761,2585.6,2584.9,3.86856]
[1727046472094,0.0534592,2585.7,2585.0,1.3513]
[1727046472301,0.0534592,2585.7,2585.0,1.873286]
[1727046472453,3.86758,2585.6,2585.0,1.873286]
[1727046473302,3.86758,2585.6,2584.7,4.777786]
[1727046473303,2.3468,2585.6,2584.7,1.3513]
[1727046473466,3.86806,2585.3,2584.7,1.3513]
[1727046474203,3.86806,2585.3,2584.7,5.22009]
[1727046474699,3.9209492,2585.7,2584.7,1.3513]
[1727046474883,3.9209492,2585.7,2584.9,3.86851]
[1727046475054,4.31304412,2585.7,2584.9,3.86851]
[1727046475251,3.86774,2585.5,2584.9,3.86851]
[1727046475496,3.86812,2585.3,2584.7,5.22014]
[1727046475859,3.86812,2585.3,2584.8,3.86875]
[1727046476197,3.86812,2585.3,2584.7,5.22014]
[1727046476682,3.86832,2585.1,2584.7,1.3513]
[1727046476857,3.86849,2585.0,2584.7,1.3513]
[1727046477064,7.73674,2585.1,2584.5,3.86921]
[1727046477505,3.86863,2584.9,2584.0,1.3513]
[1727046477798,0.386863,2584.9,2584.0,1.3513]
[1727046478096,3.8681,2585.3,2584.7,5.22022]